bitfinex/quotes_SOLUSD_20240725
["timestamp","ask_amount","ask_price","bid_price","bid_amount"]
[1721914637144,5.943,168.27,168.19,5.9455]
[1721914637344,5.943,168.27,168.17,21.1618]
[1721914637345,5.9436,168.25,168.17,21.1618]
[1721914637565,14.8532,168.32,168.17,21.1618]
[1721914637874,65.0,168.31,168.17,14.8653]
[1721914638111,5.9435,168.25,168.17,14.8653]
[1721914638373,65.0,168.24,168.17,14.8653]
[1721914638553,384.2,168.23,168.13,14.8692]
[1721914638752,70.9446,168.22,168.13,14.8692]
[1721914639060,70.9446,168.22,168.16,5.9466]
[1721914639251,65.0,168.22,168.13,14.8692]
[1721914639669,65.0,168.22,168.17,5.9462]
[1721914639887,65.0,168.22,168.15,5.9468]
[1721914640095,65.0,168.22,168.12,29.7394]
[1721914640277,384.2,168.27,168.2,5.9452]
[1721914640474,404.2,168.26,168.21,5.9448]
[1721914640675,5.9422,168.29,168.23,5.9441]
[1721914640897,390.1417,168.31,168.22,14.8611]
[1721914641192,390.1417,168.31,168.17,20.8114]
[1721914641193,5.9442,168.23,168.17,20.8114]
[1721914642083,14.8584,168.26,168.13,14.8689]
[1721914642395,5.9453,168.2,168.14,5.9472]
[1721914642606,5.9457,168.19,168.13,14.8689]
[1721914642810,65.0,168.25,168.09,14.8724]
[1721914642811,5.9473,168.15,168.09,14.8724]
[1721914643102,65.0,168.18,168.09,14.8724]
[1721914643103,384.2,168.17,168.09,14.8724]
[1721914643266,70.9469,168.16,168.09,14.8724]
[1721914643472,65.0,168.16,168.09,14.8724]
[1721914643671,384.2,168.23,168.07,20.0]
[1721914643878,5.9457,168.19,168.12,5.9479]
[1721914644092,5.9457,168.19,168.11,14.8709]
[1721914644296,20.0,168.18,168.11,14.8709]
[1721914644588,384.2,168.23,168.12,20.0]
[1721914644771,384.2,168.23,168.19,5.9456]
[1721914644970,384.2,168.23,168.13,21.18922027]
[1721914644971,384.2,168.23,168.17,14.865]
[1721914645195,384.2,168.23,168.13,14.8689]
[1721914645489,5.9446,168.22,168.16,14.8665]
[1721914645693,384.2,168.23,168.16,14.8665]
[1721914645987,384.2,168.23,168.16,20.8128]
[1721914646207,5.945,168.21,168.16,14.8665]
[1721914646366,65.0,168.22,168.12,14.8699]
[1721914646569,5.946,168.18,168.12,5.9479]
[1721914647075,65.0,168.22,168.09,29.7452]
[1721914647388,384.2,168.23,168.09,29.7452]
[1721914647389,384.2,168.23,168.18,5.9459]
[1721914647594,384.2,168.23,168.21,5.9449]
[1721914647790,6.3853,168.27,168.2,14.8629]
[1721914647985,384.2,168.28,168.2,14.8629]
[1721914648289,390.1424,168.28,168.22,5.9444]
[1721914648681,384.2,168.28,168.2,14.8629]
[1721914648874,14.8573,168.27,168.16,14.8663]
[1721914649275,20.0,168.26,168.16,14.8663]
[1721914649490,20.0,168.27,168.19,14.8638]
[1721914649683,20.0,168.27,168.22,14.861]
[1721914649883,20.0,168.27,168.23,5.9441]
[1721914650105,384.2,168.28,168.23,5.944]
[1721914650316,384.2,168.28,168.22,14.861]
[1721914650317,384.2,168.28,168.22,20.8053]
[1721914650495,384.2,168.28,168.27,5.9428]
[1721914650885,384.2,168.28,168.25,20.8019]
[1721914651112,384.2,168.28,168.26,5.9431]
[1721914651290,384.2,168.28,168.27,5.9428]
[1721914651493,384.2,168.34,168.2,20.0]
[1721914651690,384.996422,168.36,168.28,14.856]
[1721914652116,384.996422,168.36,168.31,14.8529]
[1721914653185,0.796422,168.36,168.35,5.94]
[1721914653422,0.796422,168.36,168.35,7.12790439]
[1721914653607,0.796422,168.36,168.35,5.94]
[1721914655286,390.1347,168.5,168.37,20.0]
[1721914655612,5.9347,168.5,168.44,5.9367]
[1721914655805,6.5251,168.51,168.43,14.8428]
[1721914656026,6.5251,168.51,168.35,20.0]
[1721914656312,384.2,168.5,168.4,5.9379]
[1721914656513,384.2,168.5,168.42,14.8437]
[1721914656714,384.2,168.5,168.36,20.0]
[1721914657018,384.2,168.5,168.4,5.9382]
[1721914657312,20.0,168.49,168.41,14.8446]
[1721914657493,5.9368,168.44,168.37,14.8475]
[1721914657690,20.0,168.49,168.37,14.8475]
[1721914657900,59.8388,168.48,168.35,20.0]
[1721914658102,404.2,168.47,168.34,14.8508]
[1721914658305,5.9374,168.43,168.34,14.8508]
[1721914658503,5.9374,168.43,168.31,49.7065]
[1721914658504,5.9372,168.43,168.37,20.7871]
[1721914658715,45.0,168.46,168.38,5.9388]
[1721914658716,5.9368,168.44,168.38,5.9388]
[1721914658890,5.9368,168.44,168.39,5.9385]
[1721914659299,45.0,168.46,168.37,20.787]
[1721914659501,5.9376,168.42,168.37,14.848]
[1721914659705,5.9379,168.41,168.37,14.848]
[1721914659902,384.2,168.45,168.33,14.8513]
[1721914660098,5.9378,168.42,168.35,14.8492]
[1721914660300,384.2,168.45,168.35,29.6984]
[1721914660641,25.9368,168.44,168.39,20.7847]
[1721914660924,20.0,168.44,168.39,20.7846]
[1721914661093,20.0,168.44,168.39,14.8462]
[1721914661603,20.0,168.44,168.4,5.9381]
[1721914661790,384.2,168.45,168.39,14.8462]
[1721914662185,384.2,168.45,168.41,5.9376]
[1721914662388,384.2,168.45,168.42,14.8435]
[1721914662586,384.2,168.45,168.44,5.9368]
[1721914662817,5.9352,168.49,168.44,5.9368]
[1721914663118,6.5251,168.51,168.45,14.8407]
[1721914663287,0.796422,168.53,168.48,14.8383]
[1721914663488,0.796422,168.53,168.5,5.9346]
[1721914663911,0.796422,168.53,168.51,5.9342]
[1721914664106,0.796422,168.53,168.5,14.8359]
[1721914664309,0.796422,168.53,168.5,20.7705]
[1721914664533,0.796422,168.53,168.51,5.9343]
[1721914664828,0.796422,168.53,168.51,5.9342]
[1721914665026,0.796422,168.53,168.5,14.8359]
[1721914665230,0.796422,168.53,168.46,14.8395]
[1721914665448,0.796422,168.53,168.49,5.935]
[1721914665616,0.796422,168.53,168.48,20.7731]
[1721914665617,6.730122,168.53,168.48,20.7731]
[1721914666035,0.796422,168.53,168.48,14.8378]
[1721914666312,0.796422,168.53,168.45,14.8409]
[1721914666722,0.796422,168.53,168.49,5.9347]
[1721914667032,0.796422,168.53,168.44,14.8413]
[1721914667333,5.9344,168.51,168.45,5.9361]
[1721914667536,5.9343,168.51,168.46,5.9361]
[1721914667739,0.796422,168.53,168.46,14.8396]
[1721914668035,5.9343,168.52,168.46,14.8396]
[1721914668237,0.796422,168.53,168.43,29.6842]
[1721914668238,0.796422,168.53,168.48,14.8379]
[1721914668542,0.796422,168.53,168.5,5.9344]
[1721914668835,0.796422,168.53,168.48,14.8379]
[1721914669422,5.9341,168.52,168.47,5.9354]
[1721914669840,6.730122,168.53,168.47,5.9354]
[1721914670040,0.796422,168.53,168.48,14.8384]
[1721914670227,0.796422,168.53,168.52,5.934]
[1721914670925,0.796422,168.53,168.5,14.836]
[1721914671126,0.796422,168.53,168.5,20.7707]
[1721914671332,5.9342,168.52,168.47,14.8392]
[1721914671522,6.730122,168.53,168.47,14.8392]
[1721914671733,0.796422,168.53,168.5,14.8366]
[1721914672116,0.796422,168.53,168.52,5.934]
[1721914672732,0.796422,168.53,168.47,14.8394]
[1721914672941,0.796422,168.53,168.5,5.9346]
[1721914673245,0.796422,168.53,168.49,20.7714]
[1721914673419,0.796422,168.53,168.5,5.9345]
[1721914674047,0.796422,168.53,168.49,14.8367]
[1721914674337,0.796422,168.53,168.49,20.7716]
[1721914674540,0.796422,168.53,168.45,14.8404]
[1721914674852,0.796422,168.53,168.52,5.934]
[1721914675142,0.796422,168.53,168.5,14.8362]
[1721914675323,0.796422,168.53,168.51,5.9343]
[1721914675522,0.796422,168.53,168.43,50.87103397]
[1721914675523,0.796422,168.53,168.46,14.8394]
[1721914675729,6.730122,168.53,168.48,5.9351]
[1721914676243,5.934,168.52,168.47,5.9356]
[1721914676539,0.796422,168.53,168.5,5.9344]
[1721914676746,0.796422,168.53,168.47,49.6779]
[1721914676926,0.796422,168.53,168.52,5.934]
[1721914677122,0.796422,168.53,168.5,20.7702]
[1721914677829,0.796422,168.53,168.51,5.9343]
[1721914678949,0.796422,168.53,168.52,5.934]
[1721914681433,0.796422,168.53,168.52,7.12052648]
[1721914681626,0.796422,168.53,168.52,5.934]
[1721914683180,0.796422,168.53,168.5,14.8359]
[1721914683366,0.796422,168.53,168.5,20.7705]
[1721914683859,0.796422,168.53,168.52,5.934]
[1721914684355,0.796422,168.53,168.47,14.8392]
[1721914684552,0.796422,168.53,168.38,77.55]
[1721914684861,65.796422,168.53,168.44,14.8418]
[1721914685163,5.9346,168.51,168.46,5.936]
[1721914685333,65.796422,168.53,168.41,20.0]
[1721914685334,20.796422,168.53,168.41,20.0]
[1721914685533,0.796422,168.53,168.52,5.934]
[1721914687145,0.796422,168.53,168.52,25.934]
[1721914687345,0.796422,168.53,168.52,5.934]
[1721914687531,0.796422,168.53,168.52,25.934]
[1721914687735,0.796422,168.53,168.52,5.934]
[1721914688156,0.796422,168.53,168.52,37.57061402]
[1721914688336,2.2e-05,168.53,168.52,122.57061402]
[1721914688651,22.6986,168.66,168.61,5.9304]
[1721914688831,5.9295,168.65,168.6,20.7584]
[1721914689149,22.6986,168.66,168.61,5.9305]
[1721914689532,28.6279,168.66,168.61,5.9305]
[1721914689840,384.2,168.69,168.6,29.655]
[1721914690035,384.2,168.69,168.61,1.18579469]
[1721914690259,384.2,168.69,168.57,20.0]
[1721914690434,5.9294,168.65,168.6,5.9311]
[1721914690745,384.2,168.69,168.58,14.8289]
[1721914691153,384.2,168.69,168.65,5.9291]
[1721914691353,384.2,168.69,168.6,29.6548]
[1721914691354,0.796422,168.7,168.64,14.8238]
[1721914691659,0.796422,168.7,168.66,5.929]
[1721914691830,0.796422,168.7,168.67,5.9286]
[1721914692033,0.796422,168.7,168.65,5.9294]
[1721914692232,0.796422,168.7,168.64,20.7532]
[1721914692233,6.724122,168.7,168.64,20.7532]
[1721914692450,5.9297,168.65,168.6,5.9311]
[1721914692853,0.796422,168.7,168.58,14.8295]
[1721914693043,0.796422,168.7,168.6,14.8271]
[1721914693246,45.796422,168.7,168.59,20.0]
[1721914693448,45.796422,168.7,168.62,14.8255]
[1721914693449,5.9285,168.68,168.62,14.8255]
[1721914693661,5.9283,168.68,168.62,14.8255]
[1721914694249,51.724422,168.7,168.62,14.8255]
[1721914694551,0.796422,168.7,168.68,5.9281]
[1721914694974,0.796422,168.7,168.65,5.9291]
[1721914695268,0.796422,168.7,168.64,14.8241]
[1721914695466,0.796422,168.7,168.61,5.9306]
[1721914695676,0.796422,168.7,168.6,20.7582]
[1721914695979,0.796422,168.7,168.6,14.8271]
[1721914695980,5.9298,168.64,168.6,14.8271]
[1721914696177,5.9302,168.63,168.58,5.9315]
[1721914696348,0.796422,168.7,168.54,14.8329]
[1721914696349,6.3407,168.67,168.54,14.8329]
[1721914696548,14.8247,168.64,168.54,14.8329]
[1721914696770,20.0,168.63,168.54,14.8329]
[1721914696975,14.8272,168.61,168.5,14.8362]
[1721914697271,449.2,168.63,168.53,5.9336]
[1721914697272,5.9319,168.58,168.53,5.9336]
[1721914697576,5.9315,168.59,168.54,5.9329]
[1721914697876,5.9322,168.57,168.52,14.8343]
[1721914698064,65.0,168.6,168.48,30.45]
[1721914698379,5.9318,168.59,168.53,5.9336]
[1721914698548,45.0,168.58,168.53,5.9336]
[1721914698866,20.0,168.57,168.52,5.934]
[1721914699179,20.0,168.57,168.53,5.9336]
[1721914699345,384.2,168.62,168.49,1.18657525]
[1721914699547,20.0,168.61,168.49,41.18657525]
[1721914699763,20.0,168.61,168.48,68.87660293]
[1721914699764,20.0,168.61,168.5,8.75070293]
[1721914699962,5.9318,168.59,168.53,20.7675]
[1721914700147,45.0,168.6,168.53,20.7675]
[1721914700468,20.0,168.59,168.5,14.8366]
[1721914700657,5.9323,168.57,168.51,5.934]
[1721914700850,20.0,168.59,168.5,14.8366]
[1721914701172,20.0,168.59,168.48,29.6759]
[1721914701173,20.0,168.59,168.55,5.9327]
[1721914701366,5.9308,168.61,168.56,5.9322]
[1721914701544,384.2,168.62,168.53,14.8338]
[1721914701545,5.9315,168.59,168.53,14.8338]
[1721914701865,5.931,168.61,168.53,14.8338]
[1721914702098,20.0,168.6,168.56,5.9323]
[1721914702367,20.0,168.6,168.53,14.8338]
[1721914702575,5.9316,168.59,168.53,14.8338]
[1721914702892,384.2,168.62,168.55,14.8316]
[1721914703168,21.1627,168.67,168.58,5.9318]
[1721914703169,5.93,168.64,168.58,5.9318]
[1721914703368,390.5407,168.67,168.57,14.8297]
[1721914703876,384.2,168.67,168.58,75.84461932]
[1721914704057,384.2,168.67,168.54,41.4652]
[1721914704264,384.2,168.67,168.55,21.18604188]
[1721914704469,384.2,168.67,168.64,5.9297]
[1721914704777,384.2,168.67,168.62,14.8255]
[1721914705272,5.9295,168.65,168.6,5.9311]
[1721914705466,390.1287,168.67,168.61,5.9307]
[1721914705682,390.1287,168.67,168.62,5.9303]
[1721914705865,390.1287,168.67,168.61,14.8268]
[1721914705866,5.9295,168.65,168.61,14.8268]
[1721914706171,5.93,168.64,168.58,20.7615]
[1721914706365,5.9294,168.66,168.6,5.9311]
[1721914706977,384.2,168.67,168.61,14.8266]
[1721914707185,20.0,168.66,168.61,14.8266]
[1721914707680,20.0,168.66,168.62,5.9304]
[1721914708762,384.2,168.67,168.61,14.8266]
[1721914709075,5.9282,168.69,168.63,5.93]
[1721914709251,0.796422,168.7,168.61,14.8266]
[1721914709252,5.9291,168.66,168.61,20.7571]
[1721914709456,0.796422,168.7,168.58,14.8295]
[1721914709758,5.928,168.69,168.64,5.9297]
[1721914709960,5.9284,168.68,168.63,14.8247]
[1721914710492,5.9293,168.66,168.61,5.9308]
[1721914710876,5.9295,168.65,168.6,14.8279]
[1721914711184,5.9289,168.67,168.61,5.9305]
[1721914711390,0.796422,168.7,168.6,20.759]
[1721914711581,0.796422,168.7,168.6,14.8279]
[1721914711582,45.796422,168.7,168.6,14.8279]
[1721914711755,20.0,168.69,168.6,14.8279]
[1721914712365,0.796422,168.7,168.6,14.8279]
[1721914712563,5.9284,168.68,168.63,5.9301]
[1721914712789,0.796422,168.7,168.62,14.8253]
[1721914713163,5.9283,168.69,168.64,5.9297]
[1721914713363,25.9284,168.68,168.63,5.93]
[1721914713670,0.796422,168.7,168.65,14.8235]
[1721914713862,0.796422,168.7,168.62,30.83715312]
[1721914713863,15.4984,168.68,168.5,37.3239]
[1721914714173,15.4984,168.68,168.5,22.5057]
[1721914714174,385.38561994,168.67,168.5,22.5057]
[1721914714366,5.932,168.58,168.52,5.9336]
[1721914714680,5.9323,168.57,168.52,5.9336]
[1721914714874,7.11671994,168.61,168.52,14.8343]
[1721914715080,6.5289,168.62,168.54,14.8326]
[1721914715371,1.18561994,168.65,168.61,5.9305]
[1721914715577,1.18561994,168.64,168.6,14.8271]
[1721914715883,1.18561994,168.64,168.53,29.6673]
[1721914716088,5.9318,168.59,168.53,5.9333]
[1721914716397,5.9318,168.59,168.54,20.7661]
[1721914716593,14.8271,168.62,168.51,14.8358]
[1721914716798,429.2,168.64,168.5,14.836]
[1721914716799,66.18561994,168.61,168.5,14.836]
[1721914717009,66.18561994,168.61,168.53,5.9333]
[1721914717010,5.9319,168.58,168.53,5.9333]
[1721914717178,1.18561994,168.6,168.52,14.8344]
[1721914717513,7.11691994,168.6,168.52,14.8344]
[1721914717798,20.0,168.59,168.55,5.9329]
[1721914717999,5.9319,168.58,168.54,14.8326]
[1721914718201,20.0,168.59,168.54,20.7658]
[1721914718414,21.18561994,168.63,168.55,5.9327]
[1721914718697,20.0,168.63,168.56,14.8307]
[1721914718999,390.1299,168.64,168.59,5.9312]
[1721914719205,5.9303,168.63,168.58,14.8291]
[1721914719503,1.18561994,168.63,168.57,5.9319]
[1721914719708,384.2,168.64,168.59,5.9315]
[1721914719876,384.2,168.64,168.53,49.6669]
[1721914720076,384.2,168.64,168.59,14.828]
[1721914720272,5.51161389,168.67,168.64,5.9297]
[1721914720505,6.69723383,168.67,168.63,14.8246]
[1721914720757,6.69723383,168.67,168.6,14.8279]
[1721914720758,5.51161389,168.67,168.6,14.8279]
[1721914721003,11.44031389,168.67,168.6,14.8279]
[1721914721175,1.18561994,168.66,168.6,14.8279]
[1721914721377,1.18561994,168.66,168.57,14.8302]
[1721914721579,5.9304,168.62,168.57,20.7621]
[1721914721782,1.18561994,168.66,168.57,20.7621]
[1721914721783,5.9301,168.63,168.57,14.8302]
[1721914721995,7.11621994,168.62,168.57,14.8302]
[1721914722192,5.9306,168.62,168.57,20.7621]
[1721914722389,5.9301,168.63,168.58,5.9317]
[1721914722588,5.9305,168.62,168.57,20.7624]
[1721914722892,1.18561994,168.61,168.53,44.5001]
[1721914723197,7.11671994,168.61,168.56,5.9325]
[1721914723396,5.9312,168.6,168.56,5.9325]
[1721914723788,1.18561994,168.63,168.55,14.8318]
[1721914723996,5.9312,168.6,168.55,20.7644]
[1721914724382,5.9315,168.59,168.55,20.7644]
[1721914724582,5.9312,168.6,168.55,20.7644]
[1721914724792,52.11721994,168.59,168.55,14.8318]
[1721914725004,52.11721994,168.59,168.53,5.9336]
[1721914725005,25.9322,168.58,168.53,5.9336]
[1721914725201,20.0,168.58,168.53,5.9336]
[1721914725397,25.9322,168.58,168.53,5.9336]
[1721914726284,5.9323,168.57,168.53,5.9336]
[1721914726699,7.11791994,168.57,168.52,20.7687]
[1721914726899,5.9329,168.55,168.48,14.8383]
[1721914727104,5.9329,168.55,168.49,5.9347]
[1721914727105,1.18561994,168.54,168.49,5.9347]
[1721914727295,404.2,168.58,168.46,7.81010777]
[1721914727601,7.11811994,168.57,168.52,20.7684]
[1721914727904,20.0,168.56,168.52,20.7684]
[1721914728199,20.0,168.56,168.5,5.9343]
[1721914728396,1.18561994,168.57,168.46,6.6232]
[1721914728397,1.18561994,168.55,168.46,12.559]
[1721914728581,1.18561994,168.54,168.45,14.8406]
[1721914728784,5.9336,168.53,168.44,15.4373]
[1721914729001,5.9333,168.54,168.49,5.935]
[1721914729179,21.18561994,168.55,168.5,5.9346]
[1721914729180,27.11861994,168.55,168.5,5.9346]
[1721914729376,46.18561994,168.54,168.49,14.8371]
[1721914729579,20.0,168.55,168.54,5.9333]
[1721914729803,20.0,168.57,168.55,5.9327]
[1721914729981,20.0,168.57,168.53,20.7669]
[1721914730179,20.0,168.57,168.49,14.8368]
[1721914730397,7.11821994,168.56,168.51,5.9343]
[1721914730700,5.9326,168.56,168.51,5.9343]
[1721914731188,5.9326,168.56,168.52,5.934]
[1721914731385,21.18561994,168.57,168.46,14.8401]
[1721914731587,7.11861994,168.55,168.44,15.4373]
[1721914731788,20.0,168.57,168.47,29.6774]
[1721914732086,1.18561994,168.56,168.52,14.8342]
[1721914732406,7.11821994,168.56,168.52,14.8342]
[1721914732706,7.11821994,168.56,168.51,5.9343]
[1721914733094,5.9326,168.56,168.51,5.9343]
[1721914733290,7.11751994,168.58,168.53,5.9333]
[1721914733594,27.11811994,168.57,168.52,5.9339]
[1721914733797,7.11811994,168.57,168.52,5.9339]
[1721914734196,7.11811994,168.57,168.5,5.9343]
[1721914734197,1.18561994,168.57,168.5,5.9343]
[1721914734704,5.9332,168.55,168.5,5.9343]
[1721914734912,1.18561994,168.54,168.51,5.9343]
[1721914735087,1.18561994,168.54,168.48,14.8383]
[1721914735293,1.18561994,168.54,168.49,5.935]
[1721914735508,1.18561994,168.54,168.48,14.8383]
[1721914735699,1.18561994,168.54,168.5,5.9345]
[1721914736316,20.0,168.54,168.5,5.9345]
[1721914736514,25.9334,168.54,168.48,14.8383]
[1721914736692,1.18561994,168.53,168.45,14.8411]
[1721914736894,6.6283,168.51,168.45,14.8411]
[1721914737197,5.9364,168.46,168.4,5.9382]
[1721914737418,5.9371,168.44,168.39,14.8463]
[1721914737620,21.18561994,168.43,168.39,14.8463]
[1721914737830,20.0,168.43,168.39,14.8463]
[1721914738111,68.96511994,168.42,168.36,20.7882]
[1721914738312,68.96511994,168.42,168.25,6.0126]
[1721914738313,5.9386,168.39,168.32,14.8518]
[1721914738518,1.18561994,168.38,168.34,5.9403]
[1721914739098,5.9397,168.36,168.32,14.8518]
[1721914739620,1.18561994,168.35,168.28,14.8555]
[1721914739793,1.18561994,168.35,168.29,5.9419]
[1721914739794,5.9404,168.34,168.29,5.9419]
[1721914739992,46.18561994,168.33,168.29,5.9419]
[1721914740288,1.18561994,168.34,168.29,5.942]
[1721914740593,5.9412,168.32,168.28,14.8555]
[1721914740795,385.38561994,168.37,168.28,14.8555]
[1721914740989,65.0,168.36,168.29,5.942]
[1721914741190,65.0,168.36,168.3,14.8535]
[1721914741416,20.0,168.36,168.33,14.8515]
[1721914741724,22.7795,168.42,168.28,20.0]
[1721914742021,5.9391,168.38,168.33,5.9406]
[1721914742195,5.9385,168.4,168.34,5.9403]
[1721914742396,5.9389,168.38,168.33,20.7923]
[1721914742606,16.03411994,168.37,168.23,36.61669545]
[1721914742810,1.18561994,168.37,168.26,14.8575]
[1721914742996,1.18561994,168.37,168.22,3.56491855]
[1721914742997,5.94,168.35,168.3,5.9417]
[1721914743199,1.18561994,168.37,168.28,14.8553]
[1721914743405,5.9404,168.34,168.29,5.9417]
[1721914743721,65.0,168.38,168.28,14.8553]
[1721914743722,1.18561994,168.33,168.28,14.8553]
[1721914743898,20.0,168.33,168.28,14.8553]
[1721914744103,25.9409,168.33,168.28,14.8553]
[1721914744618,7.12671994,168.32,168.26,5.9431]
[1721914745008,5.9418,168.3,168.25,5.9434]
[1721914745209,5.9418,168.3,168.24,14.8588]
[1721914745817,5.9418,168.3,168.16,50.45]
[1721914745818,6.5708,168.46,168.31,20.0]
[1721914746016,14.842,168.45,168.35,14.85]
[1721914746223,75.13975475,168.46,168.27,16.65687092]
[1721914746411,5.9396,168.36,168.31,5.9413]
[1721914746722,30.45,168.42,168.31,5.9411]
[1721914746919,30.45,168.42,168.3,20.7952]
[1721914747107,5.9406,168.34,168.29,5.9421]
[1721914747911,22.3828,168.41,168.3,14.8536]
[1721914748108,20.0,168.4,168.32,5.9409]
[1721914748302,34.8464,168.4,168.27,14.8567]
[1721914748497,5.9412,168.32,168.27,20.7992]
[1721914749120,5.9412,168.32,168.23,29.7197]
[1721914749121,30.45,168.38,168.23,20.8038]
[1721914749303,14.8517,168.34,168.23,14.8597]
[1721914749622,5.9426,168.28,168.24,5.9438]
[1721914749924,5.9426,168.28,168.23,20.8039]
[1721914750108,5.9428,168.27,168.23,14.8597]
[1721914750316,5.9428,168.27,168.15,1.18877315]
[1721914750317,65.0,168.26,168.12,6.1506]
[1721914750511,65.0,168.26,168.18,5.9456]
[1721914750709,5.9443,168.23,168.18,5.9456]
[1721914751407,65.0,168.26,168.16,14.866]
[1721914752006,5.945,168.21,168.16,20.8127]
[1721914752206,6.3421,168.22,168.12,14.8695]
[1721914752408,65.0,168.21,168.12,14.8695]
[1721914753225,384.2,168.2,168.11,0.796422]
[1721914753430,65.0,168.19,168.11,0.796422]
[1721914753609,384.2,168.18,168.11,0.796422]
[1721914753808,5.9474,168.15,168.11,0.796422]
[1721914754108,45.0,168.14,168.11,0.796422]
[1721914754311,65.0,168.17,168.11,0.796422]
[1721914754312,20.0,168.17,168.13,5.9476]
[1721914754576,20.0,168.17,168.12,14.8701]
[1721914754710,25.9465,168.17,168.12,20.8179]
[1721914755032,5.9467,168.16,168.12,14.8701]
[1721914755335,384.2,168.18,168.12,14.8701]
[1721914755942,384.2,168.18,168.11,0.796422]
[1721914755943,5.9471,168.15,168.11,0.796422]
[1721914756103,384.2,168.18,168.12,14.8701]
[1721914756304,384.2,168.18,168.16,5.9465]
[1721914756510,384.2,168.18,168.16,5.9466]
[1721914756706,384.2,168.25,168.15,14.8674]
[1721914756921,384.2,168.25,168.11,38.11140034]
[1721914757127,384.2,168.25,168.22,5.9445]
[1721914757437,12.1495,168.27,168.2,14.8631]
[1721914757635,5.9434,168.26,168.21,5.9446]
[1721914758027,6.2066,168.27,168.14,6.5843]
[1721914758351,5.9429,168.27,168.22,5.9445]
[1721914758556,384.2,168.3,168.2,14.8631]
[1721914758721,5.9431,168.26,168.2,14.8631]
[1721914758925,384.2,168.3,168.2,14.8631]
[1721914759528,14.8561,168.29,168.17,14.8656]
[1721914759745,384.2,168.3,168.14,14.8684]
[1721914759746,14.8604,168.24,168.14,14.8684]
[1721914759956,5.9449,168.21,168.16,5.9466]
[1721914760130,384.2,168.27,168.16,14.8661]
[1721914760327,5.9446,168.22,168.17,5.9463]
[1721914760527,20.0,168.21,168.17,5.9463]
[1721914760856,20.0,168.21,168.11,0.796422]
[1721914761067,5.9445,168.23,168.17,5.9461]
[1721914761238,20.0,168.25,168.12,20.0]
[1721914761434,88.6392,168.32,168.25,5.9434]
[1721914761435,5.9417,168.3,168.25,5.9434]
[1721914761650,406.6792,168.32,168.15,20.0]
[1721914761651,12.0857,168.32,168.27,5.9427]
[1721914761958,6.1444,168.32,168.24,14.8588]
[1721914762133,12.0855,168.32,168.27,5.9427]
[1721914762333,5.9411,168.32,168.27,5.9427]
[1721914762652,6.1281,168.38,168.3,14.8536]
[1721914762963,14.8429,168.43,168.32,14.852]
[1721914763130,21.7802,168.44,168.28,30.89912834]
[1721914763335,21.7802,168.44,168.29,20.0]
[1721914764058,21.7802,168.44,168.33,5.9405]
[1721914764359,21.7802,168.44,168.31,1.18807799]
[1721914764559,21.7802,168.44,168.28,21.18794217]
[1721914764856,5.9385,168.4,168.35,5.9397]
[1721914765030,5.9386,168.39,168.34,5.9401]
[1721914765231,5.9389,168.38,168.33,14.8517]
[1721914765440,5.94,168.35,168.29,14.8544]